Cogmind - Beta 16 @@@ ROGUE MODE // 2025.12.07 @ 21:30:41 Player: FrigidRock Result: Destroyed by G-47 Trooper with Particle Gun Performance ------------- Evolutions (2) 1000 Regions Visited (7) 1400 Robots Destroyed (71) 355 Value Destroyed (2830) 2830 Prototype IDs (2) 40 Alien Tech Used (0) 0 Bonus (399) 399 TOTAL SCORE: 6024 Bonus ------- High Alert Combat Kills 129 Follower Combat Kills 70 Entered Garrisons 200 Cogmind --------- Core Integrity 0/550 Matter 150/300 Energy 265/265 System Corruption 13% Temperature Warm (183) Movement Walking (175) Ox1 Location -8/Materials Parts ------- > --- POWER (1) -------- Improved Ion Engine > --- PROPULSION (4) --- Aluminum Leg Aluminum Leg Aluminum Leg > --- UTILITY (3) ------ Large Storage Unit Structural Scanner Light Armor Plating > --- WEAPON (3) ------- Particle Gun Improved Light Cannon > --- INVENTORY (15) --- Improved Ion Engine Medium Storage Unit Structural Scanner Core Analyzer Particle Gun Particle Gun Spear Peak State ------------ > --- POWER ------------ Improved Ion Engine > --- PROPULSION ------- Aluminum Leg Aluminum Leg Carbon-fiber Leg Carbon-fiber Leg > --- UTILITY ---------- Large Storage Unit Melee Analysis Suite Medium Armor Plating > --- WEAPON ----------- Spear Spear Spear > --- INVENTORY -------- Improved Ion Engine Micro Nuclear Core Medium Storage Unit Structural Scanner Structural Scanner Core Analyzer Light Armor Plating Heavy EM Shotgun Heavy EM Shotgun Heavy EM Shotgun Gauss Cannon Gauss Cannon Gauss Cannon Heavy Flail Spear [Rating: 32] Favorites ----------- Power Improved Ion Engine Engine Improved Ion Engine Power Core Light Nuclear Core Propulsion Aluminum Leg Treads Light Treads Leg Aluminum Leg Utility Large Storage Unit Device Structural Scanner Storage Large Storage Unit Processor Melee Analysis Suite Protection Medium Armor Plating Weapon Spear Energy Gun Particle Gun Energy Cannon Light EM Pulse Cannon Ballistic Gun Assault Rifle Ballistic Cannon Gauss Cannon Launcher Grenade Launcher Impact Weapon Heavy Flail Piercing Weapon Spear Build | -11 -10 -10 -10 -9 -8 -8 -8 ------- Run | Yrd Mat Min Exi Min Mat Gar Mat Slots Evolved 4 | . . . . . 4 . . Power . | . . . . . . . . Propulsion 2 | . . . . . 2 . . Utility 1 | . . . . . 1 . . Weapon 1 | . . . . . 1 . . Parts Attached 73 | 8 11 . . 3 21 29 1 Power 9 | 1 2 . . . 3 3 . Engine 5 | 1 1 . . . 1 2 . Core 4 | . 1 . . . 2 1 . Reactor . | . . . . . . . . Propulsion 24 | 2 3 . . 1 6 12 . Treads 4 | . . . . . . 4 . Leg 20 | 2 3 . . 1 6 8 . Wheel . | . . . . . . . . Hover . | . . . . . . . . Flight . | . . . . . . . . Utility 16 | 3 1 . . . 6 6 . Device 4 | 2 1 . . . . 1 . Storage 2 | 1 . . . . 1 . . Processor 2 | . . . . . 2 . . Hackware . | . . . . . . . . Protection 8 | . . . . . 3 5 . Artifact . | . . . . . . . . Weapon 24 | 2 5 . . 2 6 8 1 Energy Gun 8 | . 1 . . . 2 5 . Energy Cannon 1 | . . . . 1 . . . Ballistic Gun 5 | 2 2 . . 1 . . . Ballistic Cannon 2 | . . . . . . 1 1 Launcher 3 | . 2 . . . . 1 . Special Weapon . | . . . . . . . . Impact Weapon 1 | . . . . . . 1 . Slashing Weapon . | . . . . . . . . Piercing Weapon 4 | . . . . . 4 . . Special Melee Weapon . | . . . . . . . . Unidentified Prototypes 2 | . . . . . 2 . . Corrupted Parts 2 | . . . . . . 2 . System Corruption 7 | . . . . . . 7 . Parts Lost 33 | . 1 1 . . 5 25 1 Power 2 | . . . . . . 2 . Propulsion 16 | . . . . . 4 12 . Utility 6 | . 1 . . . . 5 . Weapon 9 | . . 1 . . 1 6 1 Highest Loss Streak 6 | . 1 1 . . 1 6 1 To Critical Strikes 1 | . . . . . . 1 . Average Backups 10 | . 6 8 7 7 12 10 7 Power 1 | . 1 1 1 1 2 1 1 Propulsion . | . . 2 2 2 . . . Utility 3 | . 2 3 3 3 3 5 3 Weapon 4 | . 2 2 1 1 6 3 3 Tool/Special . | . . . . . . . . Unused Backups 10 | . . . . . 7 . 3 Power 2 | . . . . . 2 . . Propulsion 1 | . . . . . 1 . . Utility 2 | . . . . . . . 2 Weapon 5 | . . . . . 4 . 1 Tool/Special . | . . . . . . . . Average Slot Usage (%) 93 | . 99 95 85 100 96 84 81 Engine 6 | . 11 . . . 6 5 9 Core 3 | . 2 14 14 14 2 1 . Treads 3 | . . . . . . 12 . Leg 26 | . 28 28 28 28 35 14 27 Device 5 | . 13 14 14 14 2 . 9 Storage 10 | . 14 14 14 14 9 9 9 Processor 5 | . . . . . 11 6 . Protection 4 | . . . . . 4 9 9 Energy Gun 4 | . 10 4 . 3 . 4 9 Ballistic Gun 4 | . 12 14 14 14 . . . Ballistic Cannon 1 | . . . . . . 3 9 Launcher 1 | . 4 4 . . . . . Impact Weapon 1 | . . . . . . 3 . Piercing Weapon 11 | . . . . . 23 10 . Peak Build Rating 32 | 9 10 10 10 12 32 31 17 Average Rating 19 | 5 9 8 8 10 28 21 15 On Entrance 11 | . 9 10 8 10 12 31 15 Avg Prop Armor Cover (%) 13 | . . . . . . 13 . Naked Turns . | . . . . . . . . Heaviest Build 44 | 11 16 16 16 18 40 44 41 Greatest Support 80 | 20 20 20 20 23 50 80 30 Greatest Overweight (x) 10 | . . . . . 1 10 1 Average Overweight (x) . | . . . . . . . 1 Largest Inventory Capacity 15 | 8 8 8 8 8 15 15 15 Average Capacity 12 | 6 8 8 8 8 14 15 15 Most Carried 15 | 1 8 8 8 8 15 15 8 Average Carried 10 | . 7 8 7 7 12 10 7 Final Capacity 15 | 8 8 8 8 8 15 15 15 Final Carried 14 | 1 8 8 7 8 14 7 7 Class Distribution -------------------- 32% | Scavenger-Mutant 25% | Gladiator 22% | Scavenger-Gladiator 14% | Mutant 3% | Scavenger-Tank Dominant Class ---------------- Scavenger-Mutant | -10/Materials Scavenger-Mutant | -10/Mines Scavenger-Mutant | -10/Exiles Scavenger-Mutant | -9/Mines Gladiator | -8/Materials Scavenger-Gladiator | -8/Garrison Scavenger-Mutant | -8/Materials Resources | -11 -10 -10 -10 -9 -8 -8 -8 ----------- Run | Yrd Mat Min Exi Min Mat Gar Mat Matter Collected 1328 | 257 353 20 . 64 220 414 . Remotely . | . . . . . . . . Salvage Created 2742 | 35 387 . . 49 1240 1031 . Parts 142 | 5 20 . . 8 61 48 . Haulers Intercepted 3 | . . . . . 3 . . Recyclers Shooed 1 | . 1 . . . . . . Parts Field Recycled . | . . . . . . . . Retrieved Matter . | . . . . . . . . Parts Self-Destructed . | . . . . . . . . Prevented . | . . . . . . . . Parts Restored . | . . . . . . . . Kills | -11 -10 -10 -10 -9 -8 -8 -8 ------- Run | Yrd Mat Min Exi Min Mat Gar Mat Combat Hostiles Destroyed 59 | . 13 . . 3 22 21 . Melee 27 | . . . . . 22 5 . Guns 14 | . 5 . . 2 . 7 . Cannons 4 | . . . . . . 4 . AOE 12 | . 8 . . 1 . 3 . Classes Destroyed 12 | 1 2 . . 1 5 3 . Worker 1 | . . . . . 1 . . Tunneler 2 | 2 . . . . . . . Hauler 3 | . . . . . 3 . . Mechanic 1 | . . . . . . 1 . Watcher 5 | . 2 . . . 3 . . Swarmer 9 | . . . . 3 4 2 . Grunt 35 | . 13 . . . 12 10 . Brawler 3 | . . . . . 1 2 . Duelist 1 | . . . . . . 1 . Sentry 7 | . . . . . 4 3 . Hunter 3 | . . . . . 1 2 . Programmer 1 | . . . . . . 1 . Best Kill Streak 7 | 2 4 . . 3 4 7 . Combat Bots Only 7 | . 3 . . 3 4 7 . Max Kills in Single Turn 2 | 1 2 . . 1 1 2 . Gunslinging 1 | . . . . . . 1 . Exploded 2 | . 2 . . 1 . 2 . Melee 1 | . . . . . 1 1 . Uniques/NPCs Destroyed . | . . . . . . . . Combat | -11 -10 -10 -10 -9 -8 -8 -8 -------- Run | Yrd Mat Min Exi Min Mat Gar Mat Hostile Shots Fired 402 | . 51 12 . 12 78 242 7 Missed 99 | . 10 7 . 2 25 50 5 Hits 303 | . 41 5 . 10 53 192 2 Melee 5 | . . . . . 2 2 1 Projectile 298 | . 41 5 . 10 51 190 1 Critical Strikes 9 | . . . . . 1 8 . Damage Taken 4438 | . 502 74 . 82 756 2972 52 Core 673 | . 113 . . 6 99 437 18 Absorbed by Shields . | . . . . . . . . Redirected to Shielding 36 | . . . . . . 36 . Core Remaining (%) 76 | 100 . . . 52 . . . Volleys Fired 91 | 4 35 1 . 6 . 42 3 Largest 3 | 2 2 1 . 2 . 3 3 Hottest 170 | 40 95 30 . 79 . 170 138 Shots Fired 160 | 8 56 1 . 12 . 75 8 Gun 105 | 8 40 . . 6 . 48 3 Cannon 35 | . . . . 6 . 24 5 Launcher 20 | . 16 1 . . . 3 . Special . | . . . . . . . . Kinetic 64 | 8 21 . . 6 . 24 5 Thermal 39 | . 19 . . . . 17 3 Explosive 20 | . 16 1 . . . 3 . Electromagnetic 37 | . . . . 6 . 31 . Robot Hit Streak 9 | 3 8 . . 3 . 9 3 Robot Miss Streak 4 | 1 2 . . 3 . 4 2 Penetration Max . | . . . . . . . . Secondary Targets 4 | . 1 . . . . 3 . Max Gunslinging Chain 1 | . 1 . . . . 1 . Shots Hit Robots 202 | 6 34 . . 5 71 81 5 Core Hits 114 | 4 29 . . 4 36 40 1 Critical Kills . | . . . . . . . . Critical Parts Destroyed 2 | . . . . . . 2 . Critical Strikes 15 | . . . . . 7 8 . Blast 4 | . . . . . . 4 . Smash 2 | . . . . . . 2 . Impale 9 | . . . . . 7 2 . Melee Attacks 158 | . . . . . 97 61 . Impact 15 | . . . . . . 15 . Slashing . | . . . . . . . . Piercing 143 | . . . . . 97 46 . Sneak Attacks 11 | . . . . . 10 1 . Combat Hostiles 3 | . . . . . 3 . . Follow-up Attacks 28 | . . . . . 18 10 . Damage Inflicted 6217 | 64 1055 . . 137 2336 2520 105 Guns 902 | 64 273 . . 33 . 517 15 Cannons 457 | . . . . 56 . 311 90 Explosions 1163 | . 776 . . 40 . 347 . Melee 3670 | . . . . . 2336 1334 . Ramming 25 | . 6 . . 8 . 11 . Kinetic 638 | 64 140 . . 33 . 311 90 Thermal 339 | . 133 . . 40 . 151 15 Explosive 1041 | . 776 . . . . 265 . Electromagnetic 504 | . . . . 56 . 448 . Impact 430 | . . . . . . 430 . Slashing . | . . . . . . . . Piercing 3240 | . . . . . 2336 904 . Highest Corruption 13 | . . . . . . 13 13 Average Corruption 9 | . . . . . . 8 13 Corruption Purged . | . . . . . . . . Corruption Blocked . | . . . . . . . . Effects 35 | . . . . . . 32 3 Message Errors 6 | . . . . . . 5 1 Matter Fused 5 | . . . . . . 4 1 Heat Flow Errors 6 | . . . . . . 5 1 Energy Discharges 4 | . . . . . . 4 . Parts Fused 1 | . . . . . . 1 . Data Loss (minor) 8 | . . . . . . 8 . Data Loss (major) 3 | . . . . . . 3 . Misfires 1 | . . . . . . 1 . Weapon Failures 1 | . . . . . . 1 . Overload Shots . | . . . . . . . . Overflow Damage 352 | . 7 . . . 116 229 . Projectiles . | . . . . . . . . Explosions 13 | . 7 . . . . 6 . Melee 339 | . . . . . 116 223 . Knockbacks 10 | . . . . . . 7 3 Impact 4 | . . . . . . 4 . Kinetic 6 | . . . . . . 3 3 Secondary . | . . . . . . . . Self-Inflicted Damage 104 | . 49 . . . . 55 . Shots 6 | . 4 . . . . 2 . Rammed . | . . . . . . . . Targets Rammed 12 | . 4 . . 1 . 7 . Kicked 12 | . 4 . . 1 . 7 . Crushed . | . . . . . . . . Highest Temperature 595 | . 304 2 . 180 . 595 276 Average Temperature 147 | . 97 2 . 96 . 176 131 Received Heat Transfer 1872 | . 252 27 . 9 288 1287 9 Effects 16 | . . . . . . 14 2 Shutdowns 1 | . . . . . . 1 . Energy Bleed 3 | . . . . . . 3 . Interference 6 | . . . . . . 4 2 Matter Decay 1 | . . . . . . 1 . Damage (minor) 2 | . . . . . . 2 . Damage (major) 3 | . . . . . . 3 . Siege Activations . | . . . . . . . . Martial Activations . | . . . . . . . . Shielding Activations . | . . . . . . . . Robots Disrupted . | . . . . . . . . Combat Hostiles . | . . . . . . . . Robots Corrupted 2 | . . . . . . 2 . Combat Hostiles 2 | . . . . . . 2 . Parts Fried 2 | . . . . . . 2 . Impact Corruptions 7 | . . . . . . 7 . Robots Melted . | . . . . . . . . Combat Hostiles . | . . . . . . . . Parts Melted . | . . . . . . . . Heat Transferred 618 | . 333 . . . . 248 37 Parts Sabotaged . | . . . . . . . . Parts Stolen . | . . . . . . . . Parts Stripped . | . . . . . . . . Power Chain Reactions 3 | . . . . 1 . 2 . Alert | -11 -10 -10 -10 -9 -8 -8 -8 ------- Run | Yrd Mat Min Exi Min Mat Gar Mat Maximum Alert Level 2 | . . . . . 1 2 1 Low Security (%) 64 | 100 100 100 . 100 81 8 . Level 1 16 | . . . . . 18 23 100 Level 2 19 | . . . . . . 68 . Level 3 . | . . . . . . . . Level 4 . | . . . . . . . . Level 5 . | . . . . . . . . High Security . | . . . . . . . . Max Security . | . . . . . . . . Peak Influence 598 | 10 187 46 . 64 244 598 291 Initial 291 | . . 46 . . 24 142 291 Average 185 | 1 95 33 . 5 97 425 265 Influence Increases 2141 | 10 495 8 . 74 798 756 . Destroy 0b10 Robot/C 1220 | . 260 . . 60 440 460 . Destroy 0b10 Robot/NC 70 | 10 10 . . . 35 15 . Destroy Leader 176 | . 64 . . 10 92 10 . Allied During Kill 6 | . . . . . . 6 . Successful Hack 62 | . 16 . . . 16 30 . Select Force Hacks 90 | . 60 . . . 30 . . Anti-Garrison Action 100 | . . . . . . 100 . Destroy Structure 147 | . 55 8 . 4 5 75 . Lose Combat Pursuer 270 | . 30 . . . 180 60 . Influence Decreases 1920 | 10 376 113 14 10 643 377 377 Entered New Map 511 | . . 73 14 . 40 77 307 Time Decay 879 | 10 366 30 . 10 403 . 60 Lost Part 330 | . 10 10 . . 50 250 10 Lost Ally 50 | . . . . . . 50 . Purge Threat 150 | . . . . . 150 . . Squads Dispatched 6 | . 5 . . . 1 . . Investigation 5 | . 4 . . . 1 . . Extermination . | . . . . . . . . Reinforcement 1 | . 1 . . . . . . Assault . | . . . . . . . . Garrison . | . . . . . . . . Intercept . | . . . . . . . . Searches Triggered . | . . . . . . . . Construction Impeded . | . . . . . . . . Haulers Reinforced . | . . . . . . . . Active Scanning Responses . | . . . . . . . . Cargo Convoy Interrupts . | . . . . . . . . Stealth | -11 -10 -10 -10 -9 -8 -8 -8 --------- Run | Yrd Mat Min Exi Min Mat Gar Mat Distress Signals 5 | . 2 . . . 3 . . Communications Jammed . | . . . . . . . . Distress Signals . | . . . . . . . . Times Spotted 99 | . 20 7 . 5 36 29 2 Peak Tracking Total 12 | . 5 12 . 3 7 7 2 Tactical Retreats 15 | . 1 1 . . 9 4 . Traps | -11 -10 -10 -10 -9 -8 -8 -8 ------- Run | Yrd Mat Min Exi Min Mat Gar Mat Traps Triggered 3 | . 2 . . . . 1 . Indirectly . | . . . . . . . . Trap Hack Attempts . | . . . . . . . . Triggered . | . . . . . . . . Disarmed . | . . . . . . . . Reprogrammed . | . . . . . . . . Reused . | . . . . . . . . Traps Extracted . | . . . . . . . . Installed . | . . . . . . . . Triggered . | . . . . . . . . Machines | -11 -10 -10 -10 -9 -8 -8 -8 ---------- Run | Yrd Mat Min Exi Min Mat Gar Mat Machines Disabled 5 | . 1 . . . . 4 . Max in Single Turn 1 | . 1 . . . . 1 . Garrison Relay 2 | . . . . . . 2 . Machines Repaired . | . . . . . . . . Machines Dismantled . | . . . . . . . . Machines Sabotaged . | . . . . . . . . Overloaded Fab Kills . | . . . . . . . . Hacking | -11 -10 -10 -10 -9 -8 -8 -8 --------- Run | Yrd Mat Min Exi Min Mat Gar Mat Machines Accessed 22 | . 8 . 1 . 10 2 1 Terminals 16 | . 6 . . . 7 2 1 Fabricators . | . . . . . . . . Repair Stations . | . . . . . . . . Recycling Units 3 | . 2 . . . 1 . . Scanalyzers 1 | . . . . . 1 . . Garrison Access 1 | . . . . . 1 . . Total Hacks 50 | . 15 . 4 . 26 3 2 Successful 32 | . 10 . 4 . 16 2 . Failed 17 | . 5 . . . 9 1 2 Catastrophic 1 | . . . . . . . 1 Database Lockouts 1 | . . . . . 1 . . Manual 35 | . 12 . . . 22 . 1 Terminals 39 | . 13 . . . 21 3 2 Fabricators . | . . . . . . . . Repair Stations . | . . . . . . . . Recycling Units 3 | . 2 . . . 1 . . Scanalyzers 3 | . . . . . 3 . . Garrison Access 1 | . . . . . 1 . . Terminal Hacks 8 | . . . 4 . 2 2 . Record 4 | . . . 4 . . . . Emergency Access Points 1 | . . . . . . 1 . Terminal Index 1 | . . . . . 1 . . Unreport Threat 1 | . . . . . 1 . . Security Stations 1 | . . . . . . 1 . Fabricator Hacks . | . . . . . . . . Repair Station Hacks . | . . . . . . . . Recycling Unit Hacks . | . . . . . . . . Scanalyzer 2 | . . . . . 2 . . Retrieve Study 2 | . . . . . 2 . . Garrison Access Hacks 1 | . . . . . 1 . . Unlock Access 1 | . . . . . 1 . . Unauthorized Hacks 21 | . 10 . . . 11 . . Terminals 18 | . 8 . . . 10 . . Assimilate 1 | . . . . . 1 . . Botnet 5 | . 2 . . . 3 . . Skim 12 | . 6 . . . 6 . . Fabricators . | . . . . . . . . Repair Stations . | . . . . . . . . Recycling Units 3 | . 2 . . . 1 . . Tunnel 3 | . 2 . . . 1 . . Scanalyzers . | . . . . . . . . Garrison Access . | . . . . . . . . Data Cores Recovered . | . . . . . . . . Used . | . . . . . . . . Hacking Detections 12 | . 3 . . . 7 1 1 Full Trace Events . | . . . . . . . . Feedback Events . | . . . . . . . . Feedback Blocked . | . . . . . . . . Robot Schematics Acquired . | . . . . . . . . Robots Built . | . . . . . . . . Authchips . | . . . . . . . . Time . | . . . . . . . . Total Robot Build Rating . | . . . . . . . . Part Schematics Acquired . | . . . . . . . . Parts Built . | . . . . . . . . Authchips . | . . . . . . . . Time . | . . . . . . . . Total Part Build Rating . | . . . . . . . . Part Studies Acquired 2 | . . . . . 2 . . Parts Repaired . | . . . . . . . . Time . | . . . . . . . . Parts Recycled . | . . . . . . . . Recycled Matter . | . . . . . . . . Retrieved Matter . | . . . . . . . . Retrieved Components . | . . . . . . . . Parts Scanalyzed . | . . . . . . . . Part Schematics Acquired . | . . . . . . . . Parts Damaged . | . . . . . . . . Bothacking | -11 -10 -10 -10 -9 -8 -8 -8 ------------ Run | Yrd Mat Min Exi Min Mat Gar Mat Used RIF Installer . | . . . . . . . . Robots Hacked . | . . . . . . . . Non-combat . | . . . . . . . . Combat . | . . . . . . . . Robot Hacks Applied . | . . . . . . . . Relay Couplers Released 13 | . . . . . . 13 . Machine Destruction 9 | . . . . . . 9 . Programmers 4 | . . . . . . 4 . Fabnet Peak Effective % . | . . . . . . . . Robots Rewired 2 | . . . . . . 2 . Allies Hacked . | . . . . . . . . Hacks Repelled . | . . . . . . . . Allies | -11 -10 -10 -10 -9 -8 -8 -8 -------- Run | Yrd Mat Min Exi Min Mat Gar Mat Total Allies 3 | . . . . . 1 2 . Largest Group 2 | . . . . . 1 2 . Highest-Rated Group 50 | . . . . . 10 50 . Highest-Rated Ally 34 | . . . . . 10 34 . Initial Warlord ECA Mod 2 | . . . . . . . 2 Total Orders . | . . . . . . . . Ally Attacks 10 | . . . . . . 10 . Total Damage 347 | . . . . . . 347 . Kills 2 | . . . . . . 2 . Allies Corrupted . | . . . . . . . . Allies Melted . | . . . . . . . . Intel | -11 -10 -10 -10 -9 -8 -8 -8 ------- Run | Yrd Mat Min Exi Min Mat Gar Mat Active Infowar (turns) 2360 | 18 885 78 163 193 793 110 120 Terrain 701 | 8 693 . . . . . . Structural 1204 | . 192 78 163 193 348 110 120 Seismic 10 | 10 . . . . . . . T.N.C. 445 | . . . . . 445 . . Robot Analysis Total . | . . . . . . . . Derelict Logs Recovered . | . . . . . . . . Drone Launches . | . . . . . . . . Drone Recoveries . | . . . . . . . . Exploration | -11 -10 -10 -10 -9 -8 -8 -8 ------------- Run | Yrd Mat Min Exi Min Mat Gar Mat Turns Passed 4109 | 87 909 78 163 193 1458 1101 120 Spaces Moved 2197 | 56 512 63 136 142 784 445 59 Core 7 | 5 . . . . . 2 . Treads 198 | . . . . . . 198 . Legs 1992 | 51 512 63 136 142 784 245 59 Wheels . | . . . . . . . . Hover . | . . . . . . . . Flight . | . . . . . . . . Fastest Speed 50 | 50 120 120 120 120 105 105 175 Average Speed 127 | 113 120 120 120 120 108 169 175 Slowest Speed 550 | 120 120 120 120 120 175 550 175 Overloaded Moves . | . . . . . . . . Propulsion Burnouts . | . . . . . . . . Robots Hopped . | . . . . . . . . Potential Cave-ins . | . . . . . . . . Cave-ins Triggered . | . . . . . . . . Exploration Rate (%) 40 | 4 86 20 52 41 54 56 9 Regions Visited 7 Branch Regions 3 Pre-discovered Areas 5 | . 2 . 1 . 2 . . Known Exits Taken 2 | . 1 . . . 1 . . Unknown Exits Taken 4 | 1 . 1 1 1 . . . Scrap Searched 3 | . . 1 . 2 . . . Spaces Dug 24 | . 12 8 . . 4 . . Terrain Destroyed 94 | . 62 8 . 4 4 16 . Melee 4 | . . . . . 4 . . Projectile 1 | . . . . . . 1 . AOE 89 | . 62 8 . 4 . 15 . Terrain Rammed . | . . . . . . . . Walls Destroyed . | . . . . . . . . Machines Disabled . | . . . . . . . . Actions | -11 -10 -10 -10 -9 -8 -8 -8 --------- Run | Yrd Mat Min Exi Min Mat Gar Mat Total 3151 | 69 752 64 136 153 1280 628 69 Wait 572 | . 168 . . . 365 34 5 Move 2190 | 55 511 62 135 141 783 444 59 Hop . | . . . . . . . . Pick Up 36 | 1 9 . . . 17 8 1 Fast Attach 39 | 8 4 . . 2 14 11 . Attach 23 | . . . 1 . 5 16 1 Detach 5 | . 1 . . . 4 . . Swap 28 | . 11 1 . 1 5 10 . Drop 36 | 1 9 . . 2 20 4 . Fire 91 | 4 35 1 . 6 . 42 3 Melee 112 | . . . . . 67 45 . Ram . | . . . . . . . . Kick 12 | . 4 . . 1 . 7 . Crush . | . . . . . . . . Escape Stasis 5 | . . . . . . 5 . Rewire 2 | . . . . . . 2 . Trap . | . . . . . . . . Miscellaneous . | . . . . . . . . Route ------- -11/Scrapyard -10/Materials (discovered 6 exits: *Mat x3 / *Min x2 / Sub) -10/Mines (discovered 2 exits: *Exi / Sub) -10/Exiles -9/Mines -8/Materials (discovered 4 exits: *Fac x3 / Gar) -8/Garrison (discovered 2 exits: *Mat x2) -8/Materials (discovered 1 exit: Fac) History --------- Turn | Location | Event 4 | -11/Scrapyard | Discovered new exit (range 14) 88 | -11/Scrapyard | Entered Materials 149 | -10/Materials | Discovered new exit (range 16) 306 | -10/Materials | Build established: Mutant 384 | -10/Materials | Discovered new exit (range 9) 511 | -10/Materials | Discovered new exit (range 3) 588 | -10/Materials | Derelicts attacked the area 664 | -10/Materials | Build established: Scavenger-Mutant 668 | -10/Materials | Discovered new exit (range 16) 727 | -10/Materials | Discovered new exit (range 15) 747 | -10/Materials | Learned Storage stockpile data 792 | -10/Materials | Learned Storage trap positions 827 | -10/Materials | Identified exit to Subcaves 827 | -10/Materials | Learned location of 2 exits from Materials 853 | -10/Materials | Loaded intel: 15 non-interactive machine locations 868 | -10/Materials | Identified exit to Materials 868 | -10/Materials | Identified exit to Mines 872 | -10/Materials | Learned Storage non-interactive machine intel 911 | -10/Materials | Loaded intel: 21 trap records 997 | -10/Materials | Entered Mines 998 | -10/Mines | Assembled infested the area 1007 | -10/Mines | Met a Derelict bent on vengeance 1069 | -10/Mines | Deemed a non-threat by the Exiles lab entrance 1069 | -10/Mines | Discovered new exit (range 6) 1075 | -10/Mines | Entered Exiles 1105 | -10/Exiles | Met 8R-AWN 1126 | -10/Exiles | Met EX-HEX 1158 | -10/Exiles | Met EX-BIN 1174 | -10/Exiles | Met EX-DEC 1186 | -10/Exiles | Learned location of Zion (-7) 1225 | -10/Exiles | Discovered new exit (range 14) 1238 | -10/Exiles | Entered Mines 1401 | -9/Mines | Discovered new exit (range 9) 1431 | -9/Mines | Entered Materials 1431 | -8/Materials | Evolved 4 slots: Propulsion x2, Utility x1, Weapon x1 1432 | -8/Materials | Identified exit to Factory 1455 | -8/Materials | Central database locked down 1823 | -8/Materials | Build established: Gladiator 2571 | -8/Materials | Learned location of 1 exit from Lower Caves 2620 | -8/Materials | Learned Storage terminal intel 2690 | -8/Materials | Learned Factory stockpile data 2713 | -8/Materials | Learned location of Extension (-6) 2747 | -8/Materials | Learned Storage emergency access door positions 2887 | -8/Materials | Identified exit to Garrison 2889 | -8/Materials | Entered Garrison 2889 | -8/Garrison | Accompanied by 1 ally 2947 | -8/Garrison | Build established: Scavenger-Gladiator 3001 | -8/Garrison | Lost 4 parts (3n1u) 3015 | -8/Garrison | Destroyed 7 combat bots 3036 | -8/Garrison | Learned Materials security intel 3195 | -8/Garrison | Triggered checkpoint 3221 | -8/Garrison | Core integrity fell below 50% 3294 | -8/Garrison | Lost 4 parts (1p1u2w) 3303 | -8/Garrison | Triggered checkpoint 3408 | -8/Garrison | Garrison Relay disabled 3419 | -8/Garrison | Triggered checkpoint 3447 | -8/Garrison | System corruption reached 10% 3461 | -8/Garrison | Lost 3 parts (1n1u1w) 3498 | -8/Garrison | Discovered new exit (range 13) 3516 | -8/Garrison | Core integrity fell below 20% 3549 | -8/Garrison | Lost 6 parts (1p3n2w) 3785 | -8/Garrison | Discovered new exit (range 10) 3805 | -8/Garrison | Triggered checkpoint 3917 | -8/Garrison | Lost 6 parts (3n2u1w) 3945 | -8/Garrison | Garrison Relay disabled 3990 | -8/Garrison | Entered Materials 4110 | -8/Materials | Destroyed by G-47 Trooper with Particle Gun Last Messages --------------- LOCATION=UNKNOWN GOAL=ESCAPE Loading 1 Factory entrance... Loading Materials security intel (x10)... 04028_ System corrupted: Heat flow error (+298). 04030_ Overheating: System interference. 04030_ Particle Gun temporarily disabled. 04036_ Connecting with Terminal... 04036_ Current location identified: Materials 04048_ K-01 Serf collects debris. 04050_ BS30F4WGLTZFJOG2HKK&K J0N96D %YPD 04051_ K-01 Serf cleans the Nuclear Reactor. 04052_ Acquired Imp. Light Cannon. 04055_ K-01 Serf collects debris. 04058_ K-01 Serf cleans the Nuclear Reactor. 04062_ K-01 Serf collects debris. 04094_ System corrupted: Matter fused (-9). 04101_ L-31 Rogue knocked back. 04105_ Gauss Cannon destroyed. 04107_ L-31 Rogue knocked back. Map ----- +----------------------------------------------------+ | ?????????????????????????????? | | ?????????????????????????????? | | ?????????????????????????????? | | ?????????????????????????????? | | ?????????????????????????????? | | ?????????????????????????????? | | ?????????????????????????????? | | ?????????????????????????????? | | ??????????????? ????????????? | | ??????????????? ????????????? | | ??????????????? ????????????? | | ??????????????? ????????????? | | ??????????????? ????????????? | | ??????????????? ????????????? | | ????????????#"" ?????????????? | | ????????????### ?????????????? | | ???????????? ?????????????? | | ????????????? ?????????????? | | ???????????? ?????????????? | | ????????????## ????????????? | | ????????????## ##????????????? | | ????????????## ##????????????? | | ????????????## ##????????????? | | ############## ##????????????? | | ############## ###???????????? | | # @l #### ###???????????? | | # %% %# ##???????????? | | # g # ##???????????? | | # """ """ + T ##???????????? | | # """ """ # ##???????????? | | # """ """ # ##???????????? | | # ## ###???????????? | | # ## ###???????????? | | ############ ##????????????? | | ##### ] + ##????????????? | | ???## ^ # ^##????????????? | | ???## # ^##????????????? | | ???## # ????????????? | | ???## # ??????????? | | ???## # """ ????????? | | ???#####+### """ ???????? | | ???##### #### """ #????? | | ????## #### [ ##????? | | ????## #### # ????? | | ????## """ ??? # ????? | | ????## """ + ????? | | ????## """ # ????? | | ????## ##????? | | ????## ##????? | | ????## ##????? | +----------------------------------------------------+ Best States ------------- Heat Dissipation 31 Energy Generation 15 Energy Capacity 265 Matter Stores 300 Matter Capacity 300 Sight Range 16 Terrain Scan Range 16 Terrain Scan Density 10 Armor Coverage 225 Core Shielding 20 Evasion (%) 55 Melee Accuracy 5 Recoil Reduction 4 Item Schematics ----------------- None Robot Schematics ------------------ None Fabricated ------------ Nothing Repaired ---------- Nothing Studied --------- Aluminum Leg | -8/Materials | Hacked Imp. Aluminum Leg | -8/Materials | Hacked Alien Tech Used ----------------- None Achievements -------------- Oppo Buddy Challenges ------------ None Game ------ Seed SuperchargedEncryptedWand Manual? 0 Play Time 00:36:16 Cumulative 460.0 hours Start 2025.12.07 @ 20:55:21 End 2025.12.07 @ 21:30:41 Sessions 1 Manual Loads 0 Difficulty Rogue Special Mode None Game No. 188 Rogue 115 Adventurer 68 Explorer 5 Win Type - Total 36 Types 20/3/3/4/3/0/1/0/0/2 Lore% 81 Gallery% 78 Achievement% 61 Wizard Run 0 Options --------- Layout 0 ASCII 0 Keyboard 0 Movement Numpad Keybinds 0 Fullscreen 1 Font 24/Smallcaps Map View 76x50 Zoom Use 0% Tactical HUD 1 Map Filters NONE Filters NONE Steam 1 RUN: 9375d921-13fd-4832-acc0-0bf5ba6298e8